Cogmind - Beta 14 @@@ ROGUE MODE // 2024.10.08 @ 20:59:43 Player: Gatamar Result: Destroyed by 78-7O4(R) with Subdweller Machine Gun Performance ------------- Evolutions (0) 0 Regions Visited (3) 600 Robots Destroyed (11) 55 Value Destroyed (353) 353 Prototype IDs (0) 0 Alien Tech Used (0) 0 Bonus (0) 0 TOTAL SCORE: 1008 Bonus ------- None Cogmind --------- Core Integrity 0/250 Matter 111/300 Energy 100/100 System Corruption 0% Temperature Cool (0) Movement Walking (680) Ox8 Location -10/Subcaves Parts ------- > --- POWER (1) -------- (None) > --- PROPULSION (2) --- Aluminum Leg > --- UTILITY (2) ------ Huge Storage Unit Terrain Scanner > --- WEAPON (2) ------- (None) > --- INVENTORY (25) --- Light Treads Aluminum Leg Heat Sink Small Storage Unit Small Battery (100) Targeting Computer Peak State ------------ > --- POWER ------------ Light Ion Engine > --- PROPULSION ------- Light Treads Light Treads > --- UTILITY ---------- Huge Storage Unit Terrain Scanner > --- WEAPON ----------- Medium Laser Light Assault Rifle > --- INVENTORY -------- Ion Engine Aluminum Leg Aluminum Leg Aluminum Leg Heat Sink Small Storage Unit Small Battery Terrain Scanner EM Pulse Gun Light Cannon [Rating: 8] Favorites ----------- Power Light Ion Engine Engine Light Ion Engine Propulsion Light Treads Treads Light Treads Leg Aluminum Leg Utility Huge Storage Unit Device Terrain Scanner Storage Huge Storage Unit Weapon Light Assault Rifle Energy Gun Medium Laser Ballistic Gun Light Assault Rifle Ballistic Cannon Light Cannon Launcher Grenade Launcher Special Weapon Mining Laser Build | -11 -10 -10 -10 ------- Run | Yrd Mat Min Sub Slots Evolved . | . . . . Power . | . . . . Propulsion . | . . . . Utility . | . . . . Weapon . | . . . . Parts Attached 19 | 6 2 8 3 Power 2 | 1 . 1 . Engine 2 | 1 . 1 . Core . | . . . . Reactor . | . . . . Propulsion 4 | 2 . 2 . Treads 2 | 2 . . . Leg 2 | . . 2 . Wheel . | . . . . Hover . | . . . . Flight . | . . . . Utility 4 | 1 2 1 . Device 2 | . 1 1 . Storage 2 | 1 1 . . Processor . | . . . . Hackware . | . . . . Protection . | . . . . Artifact . | . . . . Weapon 9 | 2 . 4 3 Energy Gun 2 | 1 . . 1 Energy Cannon . | . . . . Ballistic Gun 2 | 1 . 1 . Ballistic Cannon 2 | . . 1 1 Launcher 2 | . . 2 . Special Weapon 1 | . . . 1 Impact Weapon . | . . . . Slashing Weapon . | . . . . Piercing Weapon . | . . . . Special Melee Weapon . | . . . . Unidentified Prototypes . | . . . . Parts Lost 13 | . . 6 7 Power 2 | . . 1 1 Propulsion 2 | . . 1 1 Utility 1 | . . 1 . Weapon 8 | . . 3 5 Highest Loss Streak 6 | . . 6 6 To Critical Strikes . | . . . . Average Slot Usage (%) 97 | . 96 99 94 Engine 13 | . 14 13 14 Treads 14 | . 28 20 . Leg 13 | . . 7 27 Device 13 | . 10 13 14 Storage 14 | . 14 14 14 Energy Gun 7 | . 14 9 . Ballistic Gun 12 | . 14 13 9 Ballistic Cannon 1 | . . 2 . Launcher 5 | . . 1 13 Peak Build Rating 8 | 6 8 8 7 Average Rating 7 | 4 7 7 6 On Entrance 5 | . 6 8 7 Naked Turns . | . . . . Heaviest Build 90 | 11 87 90 90 Greatest Support 40 | 40 40 40 20 Greatest Overweight (x) 4 | 2 2 4 4 Average Overweight (x) 2 | . 1 2 4 Largest Inventory Capacity 25 | 8 25 25 25 Average Capacity 24 | 7 20 25 25 Most Carried 13 | 4 12 13 9 Average Carried 9 | 2 8 11 8 Final Capacity 25 | 8 25 25 25 Final Carried 12 | 4 12 9 6 Class Distribution -------------------- 100% | Mutant Dominant Class ---------------- Mutant | -10/Materials Mutant | -10/Mines Mutant | -10/Subcaves Resources | -11 -10 -10 -10 ----------- Run | Yrd Mat Min Sub Matter Collected 416 | 221 67 95 33 Remotely . | . . . . Salvage Created 256 | . 89 134 33 Parts 15 | . 7 7 1 Haulers Intercepted . | . . . . Recyclers Shooed . | . . . . Parts Field Recycled . | . . . . Retrieved Matter . | . . . . Parts Self-Destructed 6 | . . . 6 Prevented . | . . . . Kills | -11 -10 -10 -10 ------- Run | Yrd Mat Min Sub Combat Hostiles Destroyed 9 | . 3 5 1 Guns 6 | . 3 3 . Cannons 1 | . . 1 . AOE 2 | . . 1 1 Classes Destroyed 5 | . 2 2 1 Builder 2 | . . 2 . Swarmer 1 | . 1 . . Grunt 6 | . 2 4 . Demolisher 1 | . . 1 . Subdweller 1 | . . . 1 Best Kill Streak 4 | . 2 4 1 Combat Bots Only 2 | . 2 2 1 Max Kills in Single Turn 1 | . 1 1 1 Gunslinging . | . . . . Exploded 1 | . . 1 1 Melee . | . . . . Uniques/NPCs Destroyed . | . . . . Combat | -11 -10 -10 -10 -------- Run | Yrd Mat Min Sub Hostile Shots Fired 103 | . 29 32 42 Missed 31 | . 9 10 12 Damage Taken 1544 | . 181 701 662 Core 262 | . 44 84 134 Absorbed by Shields . | . . . . Core Remaining (%) 100 | 100 . . . Volleys Fired 58 | . 12 30 16 Largest 2 | . 2 2 2 Hottest 100 | . 70 70 100 Shots Fired 103 | . 24 55 24 Gun 75 | . 24 39 12 Cannon 5 | . . 3 2 Launcher 20 | . . 13 7 Special 3 | . . . 3 Kinetic 53 | . 12 33 8 Thermal 24 | . 12 9 3 Explosive 20 | . . 13 7 Electromagnetic 6 | . . . 6 Robot Hit Streak 11 | . 6 10 11 Robot Miss Streak 5 | . 2 5 1 Penetration Max . | . . . . Secondary Targets . | . . . . Shots Hit Robots 48 | . 13 24 11 Core Hits 29 | . 6 22 1 Critical Kills 1 | . 1 . . Critical Parts Destroyed . | . . . . Critical Strikes 7 | . 4 3 . Burn 5 | . 3 2 . Destroy 1 | . 1 . . Blast 1 | . . 1 . Melee Attacks . | . . . . Impact . | . . . . Slashing . | . . . . Piercing . | . . . . Sneak Attacks . | . . . . Combat Hostiles . | . . . . Follow-up Attacks . | . . . . Damage Inflicted 801 | . 145 478 178 Guns 395 | . 145 172 78 Cannons 90 | . . 52 38 Explosions 289 | . . 251 38 Melee . | . . . . Ramming 3 | . . 3 . Kinetic 230 | . 34 148 48 Thermal 211 | . 111 76 24 Explosive 289 | . . 251 38 Electromagnetic 68 | . . . 68 Impact . | . . . . Slashing . | . . . . Piercing . | . . . . Highest Corruption . | . . . . Average Corruption . | . . . . Corruption Purged . | . . . . Corruption Blocked . | . . . . Overload Shots . | . . . . Overflow Damage 8 | . . . 8 Projectiles . | . . . . Explosions 8 | . . . 8 Melee . | . . . . Knockbacks 2 | . . 2 . Impact . | . . . . Kinetic 2 | . . 2 . Secondary . | . . . . Self-Inflicted Damage 30 | . . . 30 Shots 1 | . . . 1 Rammed 1 | . . 1 . Targets Rammed 3 | . . 1 2 Kicked 2 | . . . 2 Crushed . | . . . . Highest Temperature 193 | . 104 193 . Average Temperature 51 | . 37 60 . Received Heat Transfer 213 | . 54 87 72 Siege Activations . | . . . . Robots Corrupted . | . . . . Combat Hostiles . | . . . . Parts Fried . | . . . . Impact Corruptions . | . . . . Robots Melted . | . . . . Combat Hostiles . | . . . . Parts Melted 1 | . . 1 . Heat Transferred 975 | . 555 370 50 Parts Sabotaged . | . . . . Parts Stolen . | . . . . Parts Stripped . | . . . . Power Chain Reactions . | . . . . Alert | -11 -10 -10 -10 ------- Run | Yrd Mat Min Sub Peak Influence 115 | . 115 56 . Initial 5 | . . 5 . Average 18 | . 31 15 . Maximum Alert Level . | . . . . Low Security (%) 100 | 100 100 100 . Level 1 . | . . . . Level 2 . | . . . . Level 3 . | . . . . Level 4 . | . . . . Level 5 . | . . . . High Security . | . . . . Max Security . | . . . . Squads Dispatched 2 | . 2 . . Investigation . | . . . . Extermination . | . . . . Reinforcement 2 | . 2 . . Assault . | . . . . Garrison . | . . . . Intercept . | . . . . Searches Triggered . | . . . . Construction Impeded . | . . . . Haulers Reinforced . | . . . . Active Scanning Responses . | . . . . Cargo Convoy Interrupts . | . . . . Stealth | -11 -10 -10 -10 --------- Run | Yrd Mat Min Sub Distress Signals 1 | . . 1 . Communications Jammed . | . . . . Distress Signals . | . . . . Times Spotted 17 | . 8 6 3 Peak Tracking Total 3 | . 3 2 2 Tactical Retreats 1 | . 1 . . Traps | -11 -10 -10 -10 ------- Run | Yrd Mat Min Sub Traps Triggered . | . . . . Indirectly . | . . . . Trap Hack Attempts . | . . . . Triggered . | . . . . Disarmed . | . . . . Reprogrammed . | . . . . Reused . | . . . . Traps Extracted . | . . . . Installed . | . . . . Triggered . | . . . . Machines | -11 -10 -10 -10 ---------- Run | Yrd Mat Min Sub Machines Disabled 1 | . . 1 . Max in Single Turn 1 | . . 1 . Machines Repaired . | . . . . Machines Dismantled . | . . . . Machines Sabotaged . | . . . . Overloaded Fab Kills . | . . . . Hacking | -11 -10 -10 -10 --------- Run | Yrd Mat Min Sub Machines Accessed 2 | . 2 . . Terminals . | . . . . Fabricators . | . . . . Repair Stations 1 | . 1 . . Recycling Units 1 | . 1 . . Scanalyzers . | . . . . Garrison Access . | . . . . Total Hacks 4 | . 4 . . Successful 2 | . 2 . . Failed 2 | . 2 . . Catastrophic 1 | . 1 . . Database Lockouts . | . . . . Manual . | . . . . Terminals . | . . . . Fabricators . | . . . . Repair Stations 1 | . 1 . . Recycling Units 3 | . 3 . . Scanalyzers . | . . . . Garrison Access . | . . . . Terminal Hacks . | . . . . Fabricator Hacks . | . . . . Repair Station Hacks . | . . . . Recycling Unit Hacks 2 | . 2 . . Report Inventory 1 | . 1 . . Retrieve Components 1 | . 1 . . Scanalyzer . | . . . . Garrison Access Hacks . | . . . . Unauthorized Hacks . | . . . . Terminals . | . . . . Fabricators . | . . . . Repair Stations . | . . . . Recycling Units . | . . . . Scanalyzers . | . . . . Garrison Access . | . . . . Data Cores Recovered . | . . . . Used . | . . . . Hacking Detections . | . . . . Full Trace Events . | . . . . Feedback Events . | . . . . Feedback Blocked . | . . . . Robot Schematics Acquired . | . . . . Robots Built . | . . . . Authchips . | . . . . Time . | . . . . Total Robot Build Rating . | . . . . Part Schematics Acquired . | . . . . Parts Built . | . . . . Authchips . | . . . . Time . | . . . . Total Part Build Rating . | . . . . Parts Repaired . | . . . . Time . | . . . . Parts Recycled . | . . . . Recycled Matter . | . . . . Retrieved Matter . | . . . . Retrieved Components 2 | . 2 . . Parts Scanalyzed . | . . . . Part Schematics Acquired . | . . . . Parts Damaged . | . . . . Bothacking | -11 -10 -10 -10 ------------ Run | Yrd Mat Min Sub Used RIF Installer . | . . . . Robots Hacked . | . . . . Non-combat . | . . . . Combat . | . . . . Robot Hacks Applied . | . . . . Relay Couplers Released . | . . . . Fabnet Peak Effective % . | . . . . Robots Rewired . | . . . . Allies Hacked . | . . . . Hacks Repelled . | . . . . Allies | -11 -10 -10 -10 -------- Run | Yrd Mat Min Sub Total Allies . | . . . . Largest Group . | . . . . Highest-Rated Group . | . . . . Highest-Rated Ally . | . . . . Total Orders . | . . . . Ally Attacks . | . . . . Total Damage . | . . . . Kills . | . . . . Allies Corrupted . | . . . . Allies Melted . | . . . . Intel | -11 -10 -10 -10 ------- Run | Yrd Mat Min Sub Robot Analysis Total . | . . . . Derelict Logs Recovered 4 | . . 3 1 Drone Launches . | . . . . Drone Recoveries . | . . . . Exploration | -11 -10 -10 -10 ------------- Run | Yrd Mat Min Sub Turns Passed 4908 | 86 542 2739 1541 Spaces Moved 1080 | 51 194 549 286 Core 13 | 13 . . . Treads 639 | 38 194 407 . Legs 428 | . . 142 286 Wheels . | . . . . Hover . | . . . . Flight . | . . . . Fastest Speed 50 | 50 160 320 400 Average Speed 331 | 144 251 340 400 Slowest Speed 400 | 160 320 400 400 Overloaded Moves . | . . . . Propulsion Burnouts . | . . . . Robots Hopped . | . . . . Cave-ins Triggered . | . . . . Exploration Rate (%) 35 | 5 27 94 15 Regions Visited 3 Branch Regions 2 Pre-discovered Areas 1 | . . . 1 Known Exits Taken . | . . . . Unknown Exits Taken 3 | 1 1 1 . Scrap Searched 2 | . . 2 . Spaces Dug 38 | . . 28 10 Terrain Destroyed 118 | . . 94 24 Melee . | . . . . Projectile . | . . . . AOE 118 | . . 94 24 Terrain Rammed . | . . . . Walls Destroyed . | . . . . Machines Disabled . | . . . . Actions | -11 -10 -10 -10 --------- Run | Yrd Mat Min Sub Total 2302 | 60 227 1368 647 Wait 1130 | . 12 778 340 Move 1077 | 50 193 548 286 Hop . | . . . . Pick Up 15 | 4 8 3 . Fast Attach 7 | 6 1 . . Attach 9 | . . 6 3 Detach . | . . . . Swap 3 | . 1 2 . Drop . | . . . . Fire 58 | . 12 30 16 Melee . | . . . . Ram . | . . . . Kick 2 | . . . 2 Crush 1 | . . 1 . Escape Stasis . | . . . . Rewire . | . . . . Trap . | . . . . Miscellaneous . | . . . . Route ------- -11/Scrapyard -10/Materials (discovered 2 exits: [*Mat] / [*Min]) -10/Mines (discovered 3 exits: [*Mat x2] / [*Sub]) -10/Subcaves History --------- Turn | Location | Event 15 | -11/Scrapyard | Discovered new exit (range 15) 87 | -11/Scrapyard | Entered Materials 156 | -10/Materials | Discovered new exit (range 8) 304 | -10/Materials | Build established: Mutant 425 | -10/Materials | Discovered new exit (range 15) 629 | -10/Materials | Entered Mines 683 | -10/Mines | Learned 2 Materials zone layouts 803 | -10/Mines | Assembled infested the area 808 | -10/Mines | Assisted by a Guerilla fighting off Assembled 994 | -10/Mines | Learned Materials machine intel 2131 | -10/Mines | Discovered new exit (range 6) 2499 | -10/Mines | Received a Rocket Launcher from a helpful Derelict 2621 | -10/Mines | Lost 6 parts (1p1n1u3w) 2652 | -10/Mines | Core integrity fell below 50% 2727 | -10/Mines | Discovered new exit (range 5) 3327 | -10/Mines | Discovered new exit (range 6) 3368 | -10/Mines | Entered Subcaves 3452 | -10/Subcaves | Learned Materials security intel 3784 | -10/Subcaves | Learned location of Zion (-7) 3784 | -10/Subcaves | Met a Zionite searching for "candidates" 4900 | -10/Subcaves | Core integrity fell below 20% 4909 | -10/Subcaves | Destroyed by 78-7O4(R) with Subdweller Machine Gun Last Messages --------------- 03903_ The unstable cave ceiling collapses. 03907_ SA-C96(u) tweaks Twisted Machinery. 03915_ The unstable cave ceiling collapses. 03931_ SA-C96(u) builds Twisted Machinery. 04044_ The unstable cave ceiling collapses. 04131_ SA-C96(u) tweaks Twisted Machinery. 04358_ Lgt. Assault Rifle destroyed. 04358_ Destroyed Lgt. Assault Rifle. 04362_ The unstable cave ceiling collapses. 04380_ SA-C96(u) tweaks Twisted Machinery. 04394_ SA-C96(u) builds Twisted Machinery. 04867_ Grenade Launcher destroyed. 04878_ Lgt. Cannon destroyed. 04885_ EM Pulse Gun destroyed. 04890_ Aluminum Leg destroyed. 04891_ 78-7O4(R) IFF system glitched. 04898_ Mining Laser destroyed. 04900_ Kicked 78-7O4(R). 04902_ Ion Engine destroyed. 04907_ Kicked 78-7O4(R). Map ----- +----------------------------------------------------+ | ##???#??????????????????????????????????? | | ###????????????????????????????????????? | | ##??#????????????????????????????????? | | ##??????????????????????????????????? | | & #?#????????????????????????????????? | | & #??#???????????????????????????????? | | # # ###????"????????????????????????????? | | ### ## # #??##??? ???????????????????????????? | | ## ## ####????? "????????????????????????????? | | # #? ?? " ???????????????????????????? | | ### ##?? "????????????????????????????? | | #?## #### #???????????????????????????????? | | ### #???????????????????????????????? | | ?# " ##???#?????????????????????????? | | #?## ## ""##???????? ?????????????????????? | | ##### ## """##??????????????????????????????? | | ??#?## ## """##?#???????????????????????????? | | ???#?# ### " #????????????????#????????????? | | ?#??## #?## ##????????????????????????????? | | ? ??#?# ##??# #?#????????? ????????????????? | | ???###?# #??## ####???? #???????????????????? | | ??????## ###?# # ##??? ??#?????????????????? | | ? ??#### ###### #?? ## ##????????????????? | | ??### # ### ## ###% ## ##????????????? | | ### ## RR < <###??????????? | | ?# ### @ #???????????? | | # # # ## #?## # ## #??????????? | | # ?## ## ###?#####?? #??????????? | | ??# # ###???#???? ?? ## ?????????? | | ????# ### ##????#????#?????#??? ##??????????? | | ??#??######?####?????????????#???????????????????? | | ????#??????#?##????????????????????#?????????????? | | ???????#?????????????????????????????????????????? | | ??????#???#??##??????????????????????????????????? | | ?????????#?????????#???????#?????????????????????? | | ?#?#???????##????#????????????#?#????????????????? | | #????#???????????????????????????????????????????? | | ????????????????????????????????#????????????????? | | ?????#?????#?????????????????????????????????????? | | ??????#??????????????????????????????????????????? | | ?????????????????????????????????????????????????? | | ?????????????????????????????????????????????????? | | ?????????????????????????????????????????????????? | | ?????????????????????????????????????????????????? | | ?????????????????????????????????????????????????? | | ?????????????????????????????????????????????????? | | | | | | | | | +----------------------------------------------------+ Best States ------------- Heat Dissipation 25 Energy Generation 10 Energy Capacity 250 Matter Stores 300 Matter Capacity 300 Sight Range 16 Terrain Scan Range 14 Terrain Scan Density 10 Evasion (%) 40 Recoil Reduction 2 Item Schematics ----------------- None Robot Schematics ------------------ None Fabricated ------------ Nothing Alien Tech Used ----------------- None Achievements -------------- None Challenges ------------ None Game ------ Seed TacticalAssaultAnalyzer Manual? 0 Play Time 00:13:50 Cumulative 8.0 hours Start 2024.10.08 @ 20:48:08 End 2024.10.08 @ 20:59:43 Sessions 1 Manual Loads 0 Difficulty Rogue Special Mode None Game No. 27 Rogue 27 Adventurer 0 Explorer 0 Win Type - Total 0 Types 0/0/0/0/0/0/0/0/0 Lore% 5 Gallery% 11 Achievement% 11 Wizard Run 0 Options --------- Layout 1 ASCII 0 Keyboard 0 Movement Numpad Keybinds 0 Fullscreen 1 Font 32/SmallcapsGlow Map View 50x35 Zoom Use 0% Tactical HUD 1 Map Filters NONE Filters NONE Steam 1 RUN: df1be8ef-d6d0-4c1d-8d72-3f4c8db83af7